bitfinex/quotes_SOLUSD_20250922
["timestamp","ask_amount","ask_price","bid_price","bid_amount"]
[1758530451650,29.02005137,222.51,222.45,0.67]
[1758530451946,26.0,222.48,222.46,35.6]
[1758530452146,26.0,222.48,222.47,0.67]
[1758530452569,26.0,222.51,222.47,0.67]
[1758530452766,3.02022548,222.5,222.47,0.67]
[1758530453272,7.51466303,222.5,222.46,35.6]
[1758530453579,29.02022548,222.49,222.45,35.6]
[1758530453867,3.02022548,222.48,222.45,35.6]
[1758530454042,26.0,222.47,222.38,94.19559401]
[1758530454248,3.02029937,222.46,222.39,36.27]
[1758530454447,3.02029937,222.46,222.4,0.67]
[1758530454757,3.02029937,222.45,222.4,0.67]
[1758530454961,3.02029937,222.44,222.4,0.67]
[1758530455174,3.02029937,222.46,222.41,4.49620071]
[1758530455379,3.02029937,222.45,222.42,36.27]
[1758530455555,3.02029937,222.46,222.43,0.67]
[1758530455870,3.02029937,222.45,222.43,0.67]
[1758530456181,3.02029937,222.46,222.43,0.67]
[1758530456381,3.02029937,222.45,222.43,0.67]
[1758530456555,3.02029937,222.46,222.43,0.67]
[1758530456757,30.4950231,222.47,222.43,0.67]
[1758530456758,3.02029937,222.45,222.43,0.67]
[1758530456956,26.0,222.44,222.42,35.6]
[1758530457159,26.0,222.45,222.42,35.6]
[1758530457676,3.01893161,222.44,222.42,35.6]
[1758530458482,3.01893161,222.44,222.42,36.32]
[1758530460269,30.49540721,222.45,222.42,36.32]
[1758530460765,30.49540721,222.45,222.39,0.72]
[1758530460964,30.49540721,222.45,222.38,80.6]
[1758530460965,26.0,222.43,222.4,35.6]
[1758530461370,26.0,222.43,222.4,36.32]
[1758530461678,26.0,222.48,222.41,0.72]
[1758530461881,3.01653629,222.47,222.41,0.72]
[1758530463382,30.49519014,222.46,222.41,0.72]
[1758530463577,26.0,222.43,222.42,0.72]
[1758530464583,26.0,222.46,222.42,0.72]
[1758530465687,26.0,222.46,222.43,0.72]
[1758530465875,26.0,222.46,222.4,35.6]
[1758530466093,26.0,222.46,222.41,36.32]
[1758530466278,26.0,222.43,222.36,0.72]
[1758530466581,3.01294729,222.42,222.37,35.6]
[1758530466773,4.49620071,222.41,222.38,0.72]
[1758530466973,7.509148,222.41,222.38,0.72]
[1758530467378,26.0,222.39,222.37,35.6]
[1758530467581,26.0,222.39,222.38,0.72]
[1758530468571,26.0,222.39,222.36,80.6]
[1758530468888,26.0,222.39,222.37,36.32]
[1758530469095,30.49666757,222.39,222.37,36.32]
[1758530469472,26.0,222.39,222.38,0.72]
[1758530471691,26.0,222.39,222.37,35.6]
[1758530471897,26.0,222.39,222.37,0.72]
[1758530472872,4.49519014,222.46,222.38,0.7]
[1758530473076,3.00688506,222.45,222.39,35.6]
[1758530473276,26.0,222.43,222.39,36.3]
[1758530473476,3.00688506,222.42,222.4,0.7]
[1758530475086,3.00688506,222.42,222.41,0.7]
[1758530475272,26.0,222.42,222.41,0.7]
[1758530475983,26.0,222.42,222.39,36.3]
[1758530476182,26.0,222.42,222.39,35.6]
[1758530476383,26.0,222.42,222.4,0.7]
[1758530476702,30.49535272,222.46,222.41,0.7]
[1758530476996,3.00463627,222.45,222.41,0.7]
[1758530477696,7.50012241,222.45,222.41,0.7]
[1758530477895,26.0,222.42,222.41,0.7]
[1758530478297,4.49548614,222.45,222.39,40.79658477]
[1758530478498,26.0,222.42,222.39,116.9]
[1758530478696,26.0,222.42,222.4,0.7]
[1758530479005,30.49576247,222.44,222.39,116.2]
[1758530479190,3.00465804,222.43,222.39,80.6]
[1758530479389,3.00465804,222.43,222.33,80.8]
[1758530479592,3.00465804,222.43,222.33,81.5]
[1758530479788,26.0,222.4,222.33,0.9]
[1758530480101,26.0,222.4,222.33,0.2]
[1758530480102,3.00465804,222.39,222.33,0.2]
[1758530480687,26.0,222.35,222.33,0.2]
[1758530481206,30.49761626,222.34,222.33,0.2]
[1758530483220,4.49734202,222.36,222.33,0.2]
[1758530483506,26.0,222.35,222.33,0.2]
[1758530483885,26.0,222.34,222.33,0.2]
[1758530484084,26.0,222.34,222.33,0.9]
[1758530484512,30.49734202,222.36,222.33,0.9]
[1758530484807,30.49734202,222.36,222.33,0.2]
[1758530485904,2.99814524,222.35,222.33,0.2]
[1758530487508,4.49761626,222.34,222.33,0.2]
[1758530491394,7.4957615,222.34,222.33,0.2]
[1758530491597,4.49761626,222.34,222.33,0.2]
[1758530491796,7.4957615,222.34,222.33,0.2]
[1758530492019,4.49761626,222.34,222.33,0.2]
[1758530492201,7.4957615,222.34,222.33,0.2]
[1758530492405,4.49761626,222.34,222.33,0.2]
[1758530492708,7.4957615,222.34,222.33,0.2]
[1758530493021,4.49761626,222.34,222.33,0.2]
[1758530493203,7.4957615,222.34,222.33,0.2]
[1758530497623,2.99814524,222.34,222.33,0.89]
[1758530498000,33.4957615,222.34,222.33,0.89]
[1758530498709,2.99814524,222.34,222.33,0.89]
[1758530499222,33.4957615,222.34,222.33,0.89]
[1758530500132,33.4957615,222.34,222.33,0.2]
[1758530501906,33.4957615,222.34,222.33,0.89]
[1758530503650,2.99814524,222.34,222.33,0.89]
[1758530503925,28.99814524,222.34,222.33,0.89]
[1758530504625,2.99814524,222.34,222.33,0.89]
[1758530505504,2.99814524,222.34,222.33,5.38781855]
[1758530505705,2.99814524,222.35,222.33,0.2]
[1758530505931,28.99814524,222.34,222.33,0.2]
[1758530506309,28.99814524,222.34,222.27,0.2]
[1758530506517,26.0,222.3,222.27,0.2]
[1758530506718,2.99814524,222.29,222.27,0.2]
[1758530506908,13.59559401,222.33,222.27,0.2]
[1758530506909,2.99814524,222.28,222.27,0.2]
[1758530507113,30.49864615,222.29,222.27,0.89]
[1758530507332,2.99814524,222.28,222.27,0.2]
[1758530508950,7.49697554,222.28,222.27,1e-08]
[1758530509245,13.59559401,222.27,222.26,1e-08]
[1758530509415,16.59373925,222.27,222.26,1e-08]
[1758530511132,21.09277195,222.27,222.26,1e-08]
[1758530514953,56.65277195,222.27,222.26,1e-08]
[1758530517052,44.86259872,222.27,222.26,1e-08]
[1758530517434,43.05717794,222.27,222.26,1e-08]
[1758530518759,7.49717794,222.27,222.26,1e-08]
[1758530518958,43.05717794,222.27,222.26,1e-08]
[1758530519455,43.03717794,222.27,222.26,1e-08]
[1758530520058,7.49717794,222.27,222.26,1e-08]
[1758530520267,43.03717794,222.27,222.26,0.67000001]
[1758530520438,7.49717794,222.27,222.26,0.67000001]
[1758530522335,7.49717794,222.27,222.26,1e-08]
[1758530524575,26.0,222.24,222.19,0.2]
[1758530524865,64.53814524,222.23,222.19,0.2]
[1758530525037,26.0,222.2,222.19,0.2]
[1758530525237,28.99814524,222.2,222.19,0.2]
[1758530525646,2.99814524,222.2,222.19,0.2]
[1758530525843,28.99814524,222.21,222.19,0.87]
[1758530526064,2.99814524,222.2,222.19,0.87]
[1758530526245,2.99814524,222.2,222.19,0.2]
[1758530526450,7.49859528,222.2,222.19,0.87]
[1758530527574,7.49859528,222.2,222.19,0.2]
[1758530527575,33.49859528,222.2,222.19,0.2]
[1758530528070,7.49859528,222.2,222.19,0.87]
[1758530528370,30.50007678,222.22,222.19,0.87]
[1758530528573,2.99814524,222.21,222.19,0.87]
[1758530528868,2.99814524,222.21,222.2,0.67]
[1758530532754,26.0,222.21,222.2,0.67]
[1758530532964,28.99814524,222.21,222.2,0.67]
[1758530533258,35.54,222.27,222.2,0.67]
[1758530533485,3.0078462,222.26,222.2,85.77045004]
[1758530533654,29.0078462,222.25,222.21,0.69]
[1758530533853,26.0,222.22,222.21,0.69]
[1758530534255,30.49954085,222.25,222.21,0.69]
[1758530534459,26.0,222.22,222.21,0.69]
[1758530535183,30.49944973,222.25,222.21,0.69]
[1758530535383,26.0,222.22,222.21,0.69]
[1758530535550,26.0,222.25,222.21,0.69]
[1758530535751,3.00961247,222.24,222.21,0.69]
[1758530536287,35.54,222.29,222.2,80.6]
[1758530536288,26.0,222.21,222.2,80.6]
[1758530536573,26.0,222.21,222.2,85.10045004]
[1758530536953,4.49952063,222.25,222.2,85.79045004]
[1758530537158,26.0,222.22,222.21,0.69]
[1758530537964,26.0,222.24,222.21,0.69]
[1758530538166,26.0,222.22,222.2,80.6]
[1758530538373,26.0,222.22,222.2,85.10044408]
[1758530538770,26.0,222.27,222.21,0.69]
[1758530538982,29.01166483,222.26,222.21,81.29]
[1758530539167,3.01166483,222.25,222.22,0.69]
[1758530539370,26.0,222.26,222.22,0.69]
[1758530539675,3.01166483,222.25,222.22,0.69]
[1758530540076,3.01166483,222.26,222.22,0.69]
[1758530541890,7.5109824,222.26,222.22,0.69]
[1758530542293,3.01166483,222.25,222.22,0.69]
[1758530542587,3.01166483,222.26,222.22,0.69]
[1758530542786,3.01166483,222.25,222.22,0.69]
[1758530543086,3.01166483,222.26,222.22,0.69]
[1758530543395,3.01166483,222.25,222.22,0.69]
[1758530543762,3.01166483,222.25,222.22,81.29]
[1758530543986,3.01166483,222.25,222.23,0.69]
[1758530544180,3.01166483,222.25,222.24,0.69]
[1758530545483,7.5111024,222.25,222.24,0.69]
[1758530545687,3.01166483,222.25,222.24,0.69]
[1758530547098,3.01166483,222.25,222.24,81.29]
[1758530547401,3.01166483,222.26,222.24,81.26]
[1758530547577,3.01166483,222.29,222.25,36.16]
[1758530547771,3.01166483,222.28,222.26,0.66]
[1758530547978,3.01166483,222.32,222.26,0.66]
[1758530548193,26.0,222.3,222.26,0.66]
[1758530548381,26.0,222.28,222.26,0.66]
[1758530548715,3.01166483,222.27,222.25,80.6]
[1758530548875,29.01166483,222.26,222.25,80.6]
[1758530549274,29.01166483,222.26,222.19,36.36]
[1758530549474,3.01166483,222.25,222.19,36.36]
[1758530549780,3.01166483,222.24,222.19,36.36]
[1758530549984,3.01166483,222.23,222.2,0.66]
[1758530550183,3.01166483,222.22,222.2,0.66]
[1758530550387,3.01166483,222.21,222.2,0.66]
[1758530550794,7.51191234,222.21,222.19,0.2]
[1758530551097,3.01166483,222.2,222.19,0.2]
[1758530551595,3.01166483,222.21,222.19,0.2]
[1758530551803,26.0,222.22,222.19,0.2]
[1758530551804,3.01166483,222.2,222.19,0.86]
[1758530551995,3.01166483,222.21,222.19,0.86]
[1758530552193,3.01166483,222.2,222.19,0.2]
[1758530552781,3.01166483,222.2,222.19,0.86]
[1758530559581,3.01166483,222.2,222.19,5.36065259]
[1758530559908,26.0,222.25,222.19,5.36065259]
[1758530560084,3.02501398,222.24,222.2,0.66]
[1758530560291,3.02501398,222.23,222.21,35.5]
[1758530560603,3.02501398,222.22,222.21,35.5]
[1758530560795,3.02501398,222.24,222.21,35.5]
[1758530560995,3.02501398,222.23,222.22,0.66]
[1758530561192,3.02501398,222.24,222.21,35.5]
[1758530561388,3.02501398,222.23,222.22,0.66]
[1758530561707,3.02501398,222.23,222.21,116.1]
[1758530561888,26.0,222.25,222.21,116.1]
[1758530562087,3.02483857,222.24,222.22,0.66]
[1758530562300,3.02483857,222.23,222.21,116.1]
[1758530562502,26.0,222.25,222.21,120.60023751]
[1758530562807,3.02459615,222.24,222.22,0.66]
[1758530563105,3.02459615,222.23,222.21,120.60023751]
[1758530563406,3.02459615,222.22,222.21,120.60023751]
[1758530563718,3.02459615,222.25,222.21,120.60023751]
[1758530564004,3.02459615,222.24,222.22,14.25559401]
[1758530564307,3.02459615,222.27,222.24,13.59559401]
[1758530564496,3.02459615,222.32,222.25,36.14]
[1758530564804,29.02459615,222.31,222.26,0.66]
[1758530565007,3.02459615,222.3,222.26,0.66]
[1758530565194,3.02459615,222.29,222.26,0.66]
[1758530565394,3.02459615,222.3,222.26,0.66]
[1758530565589,26.0,222.31,222.27,35.48]
[1758530565590,3.02459615,222.29,222.27,35.48]
[1758530565893,3.02459615,222.3,222.28,0.66]
[1758530566092,3.02459615,222.29,222.28,0.66]
[1758530566300,3.02459615,222.3,222.28,0.66]
[1758530566907,3.02459615,222.31,222.28,0.66]
[1758530567089,3.02459615,222.3,222.29,0.66]
[1758530567284,3.02459615,222.31,222.27,39.97901271]
[1758530567610,3.02459615,222.3,222.27,39.97901271]
[1758530567908,3.02459615,222.3,222.28,0.66]
[1758530568508,3.02459615,222.3,222.28,5.15869553]
[1758530568807,3.02459615,222.3,222.29,0.66]
[1758530568987,3.02459615,222.32,222.29,36.14]
[1758530569187,3.02459615,222.31,222.3,0.66]
[1758530569398,3.02459615,222.32,222.3,0.66]
[1758530569602,3.02459615,222.32,222.31,0.66]
[1758530569906,3.02459615,222.33,222.31,36.14]
[1758530570097,3.02459615,222.32,222.31,35.48]
[1758530570702,3.02459615,222.32,222.31,36.14]
[1758530570899,3.02459615,222.33,222.31,121.23819726]
[1758530571100,16.23989335,222.43,222.32,14.25559401]
[1758530571101,3.02459615,222.38,222.32,14.25559401]
[1758530571285,3.02459615,222.37,222.33,0.66]
[1758530571491,3.02459615,222.36,222.34,35.46]
[1758530571686,3.02459615,222.35,222.34,35.46]
[1758530571885,3.02459615,222.37,222.34,35.46]
[1758530572086,3.02459615,222.36,222.32,14.25559401]
[1758530572393,3.02459615,222.37,222.33,36.12]
[1758530572596,3.02459615,222.36,222.33,36.12]
[1758530572795,3.02459615,222.37,222.33,36.12]
[1758530572998,3.02459615,222.36,222.34,0.66]
[1758530573208,3.02459615,222.37,222.35,35.46]
[1758530573399,26.0,222.38,222.35,35.46]
[1758530573400,3.02459615,222.36,222.35,36.12]
[1758530573593,3.02459615,222.37,222.35,36.12]
[1758530573792,3.02459615,222.36,222.35,36.12]
[1758530574003,3.02459615,222.37,222.35,36.12]
[1758530574196,3.02459615,222.36,222.35,36.12]
[1758530574416,3.02459615,222.37,222.35,36.12]
[1758530574799,26.0,222.37,222.36,0.66]
[1758530574999,29.02459615,222.37,222.36,0.66]
[1758530575316,3.02459615,222.37,222.36,0.66]
[1758530575613,3.02459615,222.38,222.36,0.66]
[1758530575808,3.02459615,222.37,222.36,0.66]
[1758530576009,3.02459615,222.38,222.36,0.66]
[1758530576318,3.02459615,222.37,222.36,0.66]
[1758530576498,3.02459615,222.38,222.36,81.26]
[1758530576798,3.02459615,222.37,222.36,81.26]
[1758530576993,3.02459615,222.38,222.36,81.26]
[1758530577214,3.02459615,222.37,222.36,80.6]
[1758530577518,3.02459615,222.38,222.36,80.6]
[1758530577714,3.02459615,222.38,222.36,116.74]
[1758530578215,29.02459615,222.38,222.37,0.7]
[1758530578735,3.02459615,222.38,222.37,0.7]
[1758530579816,7.52107303,222.4,222.36,80.6]
[1758530580006,26.0,222.38,222.37,35.44]
[1758530580202,29.02459615,222.38,222.37,35.44]
[1758530580409,29.02459615,222.38,222.37,36.14]
[1758530580915,29.02459615,222.38,222.37,35.44]
[1758530581917,29.02459615,222.38,222.37,36.14]
[1758530582118,26.0,222.38,222.37,36.14]
[1758530583020,26.0,222.38,222.37,35.44]
[1758530584115,30.49685318,222.38,222.36,80.6]
[1758530584305,4.49685318,222.38,222.37,35.44]
[1758530584505,26.0,222.38,222.37,35.44]
[1758530584722,29.01194683,222.38,222.37,35.44]
[1758530585131,26.0,222.38,222.37,35.44]
[1758530585337,26.0,222.41,222.37,36.14]
[1758530585632,3.01216584,222.4,222.38,0.7]
[1758530585806,4.49478604,222.48,222.39,4.49660506]
[1758530586012,7.50734422,222.48,222.4,36.12]
[1758530586201,26.0,222.46,222.41,0.7]
[1758530586506,3.01255818,222.45,222.42,36.12]
[1758530586708,26.0,222.45,222.42,36.12]
[1758530586932,15.73186334,222.48,222.42,36.12]
[1758530587113,26.0,222.45,222.42,36.12]
[1758530587304,26.0,222.45,222.43,0.7]
[1758530587505,26.0,222.45,222.39,80.6]
[1758530587506,26.0,222.45,222.41,0.7]
[1758530587699,26.0,222.45,222.42,35.42]
[1758530590131,26.0,222.45,222.43,0.7]
[1758530591930,26.0,222.45,222.42,116.02]
[1758530592133,26.0,222.45,222.42,116.72]
[1758530592710,26.0,222.45,222.42,116.02]
[1758530592916,30.49545144,222.45,222.43,35.42]
[1758530593116,30.49545144,222.45,222.43,36.13]
[1758530593323,30.49545144,222.45,222.43,0.71]
[1758530593533,30.49545144,222.45,222.42,80.6]
[1758530593751,30.49545144,222.45,222.42,116.0]
[1758530593919,30.49545144,222.45,222.42,116.71]
[1758530594635,30.49545144,222.45,222.42,116.0]
[1758530595414,30.49545144,222.45,222.42,116.71]
[1758530595630,30.49545144,222.45,222.43,35.4]
[1758530595815,30.49545144,222.45,222.43,36.11]
[1758530596014,30.49545144,222.45,222.43,0.71]
[1758530596214,30.49545144,222.45,222.43,35.4]
[1758530596513,30.49545144,222.45,222.42,81.31]
[1758530596827,30.49545144,222.45,222.43,35.4]
[1758530597019,26.0,222.45,222.43,36.11]
[1758530597331,30.49542708,222.45,222.43,36.11]
[1758530597540,30.49542708,222.45,222.44,0.71]
[1758530597725,30.49542708,222.45,222.43,36.11]
[1758530597927,26.0,222.45,222.43,36.11]
[1758530598114,26.0,222.45,222.43,35.4]
[1758530598319,30.49541648,222.45,222.43,36.11]
[1758530598736,26.0,222.45,222.43,36.11]
[1758530599332,4.49501926,222.47,222.43,36.11]
[1758530599528,26.0,222.44,222.43,36.11]
[1758530600036,30.49486819,222.48,222.43,121.2057539]
[1758530600244,3.00934802,222.47,222.44,0.71]
[1758530600424,3.00934802,222.47,222.45,35.4]
[1758530600618,3.00934802,222.47,222.46,0.71]
[1758530602744,7.50441326,222.47,222.45,35.4]
[1758530602932,30.49506524,222.47,222.45,36.11]
[1758530603327,3.00976703,222.46,222.45,36.11]
[1758530603630,4.49506524,222.47,222.45,36.11]
[1758530603833,7.50551237,222.47,222.45,36.11]
[1758530604532,7.50551237,222.47,222.43,81.31]
[1758530604725,4.49506524,222.47,222.45,35.38]
[1758530605934,4.49506524,222.47,222.45,36.09]
[1758530606440,4.49506524,222.47,222.46,0.71]
[1758530607634,4.49506524,222.47,222.45,35.38]
[1758530607832,3.01044713,222.48,222.45,35.38]
[1758530608042,3.01044713,222.48,222.45,36.09]
[1758530608841,26.0,222.46,222.45,36.09]
[1758530609041,33.50563727,222.46,222.43,35.38]
[1758530609240,3.01044713,222.45,222.43,35.38]
[1758530609623,3.01044713,222.45,222.43,36.09]
[1758530610241,3.01044713,222.45,222.43,35.38]
[1758530610446,3.01044713,222.45,222.44,0.71]
[1758530610629,3.01044713,222.45,222.43,35.38]
[1758530610829,3.01044713,222.44,222.43,36.09]
[1758530611030,7.5059371,222.45,222.43,36.09]
[1758530611332,26.0,222.42,222.41,80.6]
[1758530611532,26.0,222.42,222.41,115.98]
[1758530611741,26.0,222.42,222.41,116.69]
[1758530612148,26.0,222.42,222.41,81.31]
[1758530612453,26.0,222.42,222.41,116.69]
[1758530613743,3.01867398,222.42,222.41,80.6]
[1758530613927,30.49599856,222.42,222.41,115.96]
[1758530614128,7.51467254,222.42,222.41,115.96]
[1758530614448,30.49599856,222.42,222.41,81.31]
[1758530614746,29.01867398,222.42,222.41,116.67]
[1758530614925,29.01867398,222.42,222.41,0.71]
[1758530615126,29.01867398,222.42,222.41,36.07]
[1758530615460,3.01867398,222.42,222.41,40.56620071]
[1758530615623,3.01867398,222.44,222.41,40.56620071]
[1758530615956,3.01867398,222.44,222.42,0.71]
[1758530616263,3.01867398,222.44,222.43,35.36]
[1758530616451,3.01867398,222.44,222.43,36.07]
[1758530617338,3.01867398,222.46,222.43,36.07]
[1758530617540,3.01867398,222.45,222.44,0.71]
[1758530617750,26.0,222.43,222.41,0.71]
[1758530618063,26.0,222.43,222.42,36.07]
[1758530618239,29.02226691,222.43,222.42,36.07]
[1758530620836,29.02226691,222.43,222.42,116.67]
[1758530621152,3.02226691,222.43,222.42,116.67]
[1758530621353,3.02226691,222.43,222.42,115.96]
[1758530621551,3.02226691,222.43,222.42,80.6]
[1758530621770,3.02226691,222.43,222.42,115.96]
[1758530625046,29.02226691,222.43,222.42,115.96]
[1758530625255,3.02226691,222.43,222.42,116.67]
[1758530626361,29.02226691,222.43,222.42,116.67]
[1758530626956,29.02226691,222.43,222.42,36.07]
[1758530627256,29.02226691,222.43,222.42,39.43939772]
[1758530627764,29.02226691,222.43,222.42,39.43932034]
[1758530630970,29.02226691,222.43,222.42,38.70932034]
[1758530631280,29.02226691,222.43,222.42,39.41932034]
[1758530632367,29.02226691,222.43,222.42,38.70932034]
[1758530632554,3.02226691,222.43,222.42,3.36932034]
[1758530632752,33.51806334,222.43,222.42,3.36932034]
[1758530632959,37.27995563,222.43,222.39,35.34]
[1758530633158,26.0,222.41,222.4,3.37319527]
[1758530633358,26.0,222.41,222.38,35.34]
[1758530633359,26.0,222.4,222.38,35.34]
[1758530633660,3.02226691,222.39,222.38,35.34]
[1758530633867,3.02226691,222.39,222.38,36.05]
[1758530636849,3.02226691,222.39,222.38,35.34]
[1758530637048,7.51887197,222.39,222.38,35.34]
[1758530637254,7.51887197,222.39,222.36,0.71]
[1758530637255,7.51887197,222.39,222.32,0.71]
[1758530637467,3.76189229,222.37,222.33,35.32]
[1758530637672,3.02226691,222.38,222.32,0.71]
[1758530637673,6.7841592,222.36,222.32,36.03]
[1758530637946,6.7841592,222.36,222.33,0.71]
[1758530637947,3.02226691,222.35,222.33,0.71]
[1758530638168,3.02226691,222.34,222.32,35.32]
[1758530638358,26.0,222.35,222.33,0.71]
[1758530638563,3.02976327,222.34,222.32,35.32]
[1758530638778,3.02976327,222.33,222.32,35.32]
[1758530639065,3.02976327,222.33,222.32,36.03]
[1758530639444,3.02976327,222.33,222.32,40.52802087]
[1758530640650,3.02976327,222.33,222.32,36.03]
[1758530641560,3.02976327,222.33,222.32,40.52802087]
[1758530642863,3.02976327,222.35,222.32,40.52802087]
[1758530643060,3.02976327,222.34,222.33,5.20781855]
[1758530643252,3.02976327,222.34,222.33,4.49781855]
[1758530643458,3.02976327,222.36,222.34,13.59559401]
[1758530643665,29.974584,222.48,222.35,35.32]
[1758530643666,3.02791732,222.4,222.35,35.32]
[1758530643870,3.02791732,222.39,222.36,0.71]
[1758530644055,3.02791732,222.38,222.37,35.32]
[1758530644258,3.02791732,222.38,222.37,36.03]
[1758530644787,3.02791732,222.38,222.37,40.52700948]
[1758530645280,3.02791732,222.38,222.37,5.20700948]
[1758530645479,2.30791732,222.42,222.37,51.7695332]
[1758530645670,34.25689693,222.47,222.38,0.71]
[1758530645871,34.25689693,222.47,222.39,35.32]
[1758530646184,34.25689693,222.47,222.4,0.71]
[1758530646385,34.25689693,222.47,222.41,35.32]
[1758530646574,34.25689693,222.47,222.41,36.03]
[1758530646773,26.0,222.45,222.41,36.03]
[1758530646972,26.0,222.45,222.42,0.71]
[1758530647674,4.43189229,222.48,222.43,36.03]
[1758530647882,26.0,222.46,222.44,0.71]
[1758530648481,3.76189229,222.48,222.44,0.71]
[1758530648685,26.0,222.46,222.44,0.71]
[1758530649181,26.0,222.46,222.44,5.20556017]
[1758530649380,0.1,222.49,222.44,4.49556017]
[1758530649591,0.1,222.49,222.44,5.20556017]
[1758530649962,0.1,222.49,222.45,0.71]
[1758530653099,3.69215932,222.49,222.45,0.71]
[1758530653595,26.0,222.46,222.43,121.09568721]
[1758530653769,26.0,222.46,222.43,120.41568721]
[1758530654291,26.0,222.46,222.44,0.68]
[1758530654602,26.0,222.48,222.45,0.68]
[1758530655096,26.0,222.48,222.44,80.6]
[1758530655283,26.0,222.48,222.44,81.28]
[1758530655472,8.18675552,222.49,222.44,81.28]
[1758530655671,37.94864781,222.49,222.45,0.68]
[1758530655898,34.87675552,222.49,222.45,35.3]
[1758530656086,34.18675552,222.49,222.45,35.98]
[1758530657499,3.02584,222.48,222.45,35.98]
[1758530657794,3.02584,222.47,222.45,35.98]
[1758530657996,3.02584,222.46,222.45,35.98]
[1758530659097,3.02584,222.46,222.45,35.96]
[1758530660189,3.02584,222.46,222.45,0.68]
[1758530660398,3.02584,222.46,222.45,35.96]
[1758530661877,3.02584,222.48,222.45,40.45539222]
[1758530662077,29.02584,222.47,222.46,0.68]
[1758530662290,29.02584,222.47,222.45,39.77539222]
[1758530662492,3.02584,222.46,222.45,39.77539222]
[1758530662890,3.02584,222.46,222.45,40.45539222]
[1758530663680,3.02584,222.46,222.44,80.6]
[1758530663986,26.0,222.47,222.45,35.28]
[1758530664191,3.02426993,222.46,222.45,35.28]
[1758530665313,3.02426993,222.46,222.44,80.6]
[1758530665494,3.02426993,222.46,222.45,35.28]
[1758530665880,26.0,222.45,222.44,80.6]
[1758530666187,3.02426993,222.45,222.44,115.86]
[1758530666390,29.71426993,222.45,222.44,80.6]
[1758530666582,29.71426993,222.45,222.42,35.26]
[1758530666784,26.0,222.42,222.41,35.26]
[1758530666991,29.02426993,222.42,222.41,35.26]
[1758530669009,3.02426993,222.42,222.41,35.94]
[1758530669310,26.0,222.43,222.41,40.43620071]
[1758530669493,3.02426993,222.42,222.41,35.26]
[1758530670008,3.02426993,222.44,222.41,35.94]
[1758530670212,3.02426993,222.43,222.42,0.68]
[1758530670410,3.02426993,222.44,222.43,0.68]
[1758530670711,3.02426993,222.44,222.43,35.26]
[1758530671086,3.02426993,222.44,222.43,35.94]
[1758530671314,3.02426993,222.44,222.43,35.26]
[1758530671611,3.02426993,222.44,222.43,35.94]
[1758530672516,3.02426993,222.45,222.43,35.94]
[1758530672810,3.02426993,222.44,222.43,39.75579643]
[1758530672990,3.02426993,222.45,222.43,39.75579643]
[1758530673194,3.02426993,222.44,222.43,39.75579643]
[1758530673390,3.02426993,222.45,222.43,39.75579643]
[1758530673594,3.02426993,222.44,222.43,39.75579643]
[1758530673791,3.02426993,222.45,222.43,40.43579643]
[1758530673987,3.02426993,222.44,222.43,39.75579643]
[1758530674193,3.02426993,222.45,222.43,39.75579643]
[1758530674396,26.0,222.46,222.43,39.75579643]